[Event "Titled Tuesday Blitz May 30 Early 2023"]
[White "Mika, Tomasz"]
[Black "Baskakov, Egor"]
[WhiteFideId "1132970"]
[BlackFideId "24197866"]
[WhiteElo "2179"]
[BlackElo "2225"]
[Result "0-1"]
[Round "05"]
[TimeControl "180+2"]
[Date "2023.05.30"]
[WhiteClock "0:00:11"]
[BlackClock "0:00:24"]

1. d4 {[%clk 0:03:00]}  Nf6 {[%clk 0:02:59]} 2. Nf3 {[%clk 0:02:59]}  e6 {[%clk 0:03:00]} 3. Bf4 {[%clk 0:02:59]}  d5 {[%clk 0:03:01]} 4. e3 {[%clk 0:02:59]}  Be7 {[%clk 0:03:01]} 5. Nbd2 {[%clk 0:02:59]}  Ne4 {[%clk 0:03:02]} 6. Bd3 {[%clk 0:02:59]}  f5 {[%clk 0:03:02]} 7. O-O {[%clk 0:02:58]}  O-O {[%clk 0:03:02]} 8. c4 {[%clk 0:02:53]}  c6 {[%clk 0:03:02]} 9. Rb1 {[%clk 0:02:48]}  g5 {[%clk 0:03:01]} 10. Bg3 {[%clk 0:02:45]}  Bd7 {[%clk 0:02:55]} 11. b4 {[%clk 0:02:44]}  Nc3 {[%clk 0:02:54]} 12. Qb3 {[%clk 0:02:42]}  Nxb1 {[%clk 0:02:54]} 13. Rxb1 {[%clk 0:02:41]}  f4 {[%clk 0:02:53]} 14. Bxh7+ {[%clk 0:02:29]}  Kxh7 {[%clk 0:02:51]} 15. Qc2+ {[%clk 0:02:30]}  Kg7 {[%clk 0:02:50]} 16. Ne5 {[%clk 0:02:28]}  Be8 {[%clk 0:02:49]} 17. exf4 {[%clk 0:02:25]}  gxf4 {[%clk 0:02:50]} 18. Rb3 {[%clk 0:02:18]}  Bg5 {[%clk 0:02:45]} 19. Ndf3 {[%clk 0:02:18]}  Nd7 {[%clk 0:02:16]} 20. Nxg5 {[%clk 0:02:15]}  Qxg5 {[%clk 0:02:13]} 21. Bxf4 {[%clk 0:02:14]}  Qxf4 {[%clk 0:02:12]} 22. Rg3+ {[%clk 0:02:13]}  Kf6 {[%clk 0:02:01]} 23. Rf3 {[%clk 0:01:54]}  Qxf3 {[%clk 0:02:01]} 24. Nxf3 {[%clk 0:01:51]}  Bg6 {[%clk 0:01:52]} 25. Qd2 {[%clk 0:01:51]}  Kg7 {[%clk 0:01:28]} 26. c5 {[%clk 0:01:38]}  Rae8 {[%clk 0:01:26]} 27. h4 {[%clk 0:01:30]}  Rf5 {[%clk 0:00:59]} 28. Ng5 {[%clk 0:01:24]}  e5 {[%clk 0:00:56]} 29. dxe5 {[%clk 0:01:12]}  Nxe5 {[%clk 0:00:55]} 30. Qc3 {[%clk 0:01:04]}  Rf4 {[%clk 0:00:48]} 31. Qh3 {[%clk 0:00:43]}  Bf5 {[%clk 0:00:42]} 32. Qc3 {[%clk 0:00:35]}  d4 {[%clk 0:00:42]} 33. Qb3 {[%clk 0:00:33]}  d3 {[%clk 0:00:35]} 34. Qc3 {[%clk 0:00:28]}  Rc4 {[%clk 0:00:33]} 35. Qe1 {[%clk 0:00:20]}  Rd4 {[%clk 0:00:27]} 36. Qd1 {[%clk 0:00:11]}  d2 {[%clk 0:00:24]} 0-1


[Site "https://www.chess.com"]

[Event "Titled Tuesday Blitz May 30 Early 2023"]
[White "Papadiamandis, Elliot"]
[Black "Liu, Casper"]
[WhiteFideId "36074160"]
[BlackFideId "1454153"]
[WhiteElo "2219"]
[BlackElo "2221"]
[Result "1-0"]
[Round "05"]
[TimeControl "180+2"]
[Date "2023.05.30"]
[WhiteClock "0:00:34"]
[BlackClock "0:00:00"]

1. e4 {[%clk 0:02:57]}  c5 {[%clk 0:02:23]} 2. Nc3 {[%clk 0:02:55]}  d6 {[%clk 0:02:23]} 3. Nge2 {[%clk 0:02:54]}  Nf6 {[%clk 0:02:20]} 4. g3 {[%clk 0:02:55]}  e5 {[%clk 0:02:19]} 5. Bg2 {[%clk 0:02:55]}  Be7 {[%clk 0:02:20]} 6. d3 {[%clk 0:02:55]}  O-O {[%clk 0:02:20]} 7. O-O {[%clk 0:02:56]}  Nc6 {[%clk 0:02:21]} 8. f4 {[%clk 0:02:56]}  a6 {[%clk 0:02:22]} 9. h3 {[%clk 0:02:56]}  b5 {[%clk 0:02:22]} 10. Be3 {[%clk 0:02:57]}  Bb7 {[%clk 0:02:22]} 11. Qd2 {[%clk 0:02:57]}  Nd4 {[%clk 0:02:22]} 12. g4 {[%clk 0:02:55]}  Nd7 {[%clk 0:02:15]} 13. Ng3 {[%clk 0:02:47]}  exf4 {[%clk 0:02:03]} 14. Bxf4 {[%clk 0:02:46]}  Ne6 {[%clk 0:02:04]} 15. Be3 {[%clk 0:02:27]}  Bf6 {[%clk 0:02:04]} 16. Rab1 {[%clk 0:02:13]}  Be5 {[%clk 0:02:04]} 17. Nf5 {[%clk 0:02:13]}  g6 {[%clk 0:01:54]} 18. Nh6+ {[%clk 0:02:12]}  Kg7 {[%clk 0:01:53]} 19. Nd5 {[%clk 0:02:08]}  Qh4 {[%clk 0:01:46]} 20. Nf5+ {[%clk 0:01:36]}  gxf5 {[%clk 0:01:45]} 21. gxf5 {[%clk 0:01:37]}  Qg3 {[%clk 0:01:21]} 22. Rf3 {[%clk 0:01:25]}  Qh2+ {[%clk 0:01:21]} 23. Kf2 {[%clk 0:01:26]}  Nd4 {[%clk 0:01:21]} 24. Rf4 {[%clk 0:01:04]}  Bxd5 {[%clk 0:01:16]} 25. exd5 {[%clk 0:01:01]}  Rae8 {[%clk 0:00:36]} 26. Rg4+ {[%clk 0:00:50]}  Kh8 {[%clk 0:00:35]} 27. Rh1 {[%clk 0:00:51]}  Nf6 {[%clk 0:00:12]} 28. Rg5 {[%clk 0:00:45]}  h6 {[%clk 0:00:07]} 29. Rxh2 {[%clk 0:00:45]}  Bxh2 {[%clk 0:00:04]} 30. Rg4 {[%clk 0:00:37]}  Nxg4+ {[%clk 0:00:04]} 31. hxg4 {[%clk 0:00:38]}  Re5 {[%clk 0:00:03]} 32. Bxd4 {[%clk 0:00:35]}  cxd4 {[%clk 0:00:04]} 33. Qxh6+ {[%clk 0:00:35]}  Kg8 {[%clk 0:00:00]} 34. f6 {[%clk 0:00:34]} 1-0


[Site "https://www.chess.com"]

[Event "Titled Tuesday Blitz May 30 Early 2023"]
[White "Iskusnyh, Sergei"]
[Black "Hirneise, Jens"]
[WhiteFideId "4120027"]
[BlackFideId "24614734"]
[WhiteElo "2492"]
[BlackElo "2345"]
[Result "1-0"]
[Round "05"]
[TimeControl "180+2"]
[Date "2023.05.30"]
[WhiteClock "0:01:24"]
[BlackClock "0:00:57"]

1. d4 {[%clk 0:03:00]}  Nf6 {[%clk 0:02:59]} 2. c4 {[%clk 0:03:00]}  e6 {[%clk 0:02:59]} 3. g3 {[%clk 0:02:59]}  d5 {[%clk 0:02:54]} 4. Bg2 {[%clk 0:02:59]}  Bb4+ {[%clk 0:02:52]} 5. Bd2 {[%clk 0:02:55]}  Bxd2+ {[%clk 0:02:49]} 6. Nxd2 {[%clk 0:02:53]}  O-O {[%clk 0:02:49]} 7. Ngf3 {[%clk 0:02:53]}  Qe7 {[%clk 0:02:40]} 8. O-O {[%clk 0:02:51]}  Rd8 {[%clk 0:02:40]} 9. Qc2 {[%clk 0:02:51]}  c5 {[%clk 0:02:25]} 10. cxd5 {[%clk 0:02:50]}  cxd4 {[%clk 0:02:25]} 11. Nxd4 {[%clk 0:02:29]}  Nxd5 {[%clk 0:02:23]} 12. Rac1 {[%clk 0:02:27]}  Nb6 {[%clk 0:02:16]} 13. N2b3 {[%clk 0:02:22]}  Na6 {[%clk 0:02:12]} 14. a3 {[%clk 0:02:17]}  e5 {[%clk 0:01:56]} 15. Nf5 {[%clk 0:02:13]}  Qf6 {[%clk 0:01:39]} 16. Ne3 {[%clk 0:02:08]}  Rb8 {[%clk 0:01:37]} 17. Na5 {[%clk 0:01:59]}  h5 {[%clk 0:01:24]} 18. b4 {[%clk 0:01:54]}  Bg4 {[%clk 0:01:12]} 19. Nxb7 {[%clk 0:01:40]}  Rdc8 {[%clk 0:01:07]} 20. Nc5 {[%clk 0:01:35]}  Nxc5 {[%clk 0:01:06]} 21. bxc5 {[%clk 0:01:35]}  Nd7 {[%clk 0:01:04]} 22. c6 {[%clk 0:01:29]}  Rb6 {[%clk 0:00:57]} 23. Nd5 {[%clk 0:01:24]} 1-0


[Site "https://www.chess.com"]

[Event "Titled Tuesday Blitz May 30 Early 2023"]
[White "Colas, Joshua"]
[Black "Sai Han Thiha"]
[WhiteFideId "2044447"]
[BlackFideId "13012290"]
[WhiteElo "2347"]
[BlackElo "1954"]
[Result "1-0"]
[Round "05"]
[TimeControl "180+2"]
[Date "2023.05.30"]
[WhiteClock "0:00:08"]
[BlackClock "0:00:05"]

1. e4 {[%clk 0:03:00]}  c6 {[%clk 0:03:00]} 2. Nc3 {[%clk 0:02:57]}  d5 {[%clk 0:03:00]} 3. Nf3 {[%clk 0:02:56]}  Bg4 {[%clk 0:03:01]} 4. h3 {[%clk 0:02:56]}  Bxf3 {[%clk 0:03:01]} 5. Qxf3 {[%clk 0:02:56]}  e6 {[%clk 0:03:02]} 6. d4 {[%clk 0:02:56]}  Nf6 {[%clk 0:03:02]} 7. Bd3 {[%clk 0:02:56]}  dxe4 {[%clk 0:03:00]} 8. Nxe4 {[%clk 0:02:57]}  Qxd4 {[%clk 0:03:00]} 9. Be3 {[%clk 0:02:49]}  Qe5 {[%clk 0:02:32]} 10. O-O {[%clk 0:02:38]}  Nxe4 {[%clk 0:02:31]} 11. Bxe4 {[%clk 0:02:37]}  Bd6 {[%clk 0:02:28]} 12. g3 {[%clk 0:02:35]}  Qf6 {[%clk 0:02:18]} 13. Qd1 {[%clk 0:02:01]}  Be5 {[%clk 0:02:15]} 14. Bc5 {[%clk 0:01:54]}  Nd7 {[%clk 0:02:11]} 15. Bd6 {[%clk 0:01:46]}  Rd8 {[%clk 0:01:38]} 16. Ba3 {[%clk 0:01:20]}  Bxb2 {[%clk 0:01:04]} 17. Bxb2 {[%clk 0:01:13]}  Qxb2 {[%clk 0:01:05]} 18. Rb1 {[%clk 0:01:14]}  Qe5 {[%clk 0:01:04]} 19. Bd3 {[%clk 0:00:54]}  Nc5 {[%clk 0:00:56]} 20. Re1 {[%clk 0:00:54]}  Qf6 {[%clk 0:00:56]} 21. Qh5 {[%clk 0:00:43]}  Nxd3 {[%clk 0:00:43]} 22. cxd3 {[%clk 0:00:44]}  Rd7 {[%clk 0:00:43]} 23. Re4 {[%clk 0:00:44]}  O-O {[%clk 0:00:40]} 24. Rb3 {[%clk 0:00:39]}  Rfd8 {[%clk 0:00:37]} 25. Re3 {[%clk 0:00:37]}  g6 {[%clk 0:00:33]} 26. Qa5 {[%clk 0:00:36]}  a6 {[%clk 0:00:24]} 27. Kg2 {[%clk 0:00:37]}  Qf5 {[%clk 0:00:19]} 28. Qb6 {[%clk 0:00:35]}  Qd5+ {[%clk 0:00:16]} 29. Kh2 {[%clk 0:00:36]}  Qf5 {[%clk 0:00:15]} 30. Kg2 {[%clk 0:00:34]}  h5 {[%clk 0:00:14]} 31. h4 {[%clk 0:00:34]}  Qd5+ {[%clk 0:00:14]} 32. Kh2 {[%clk 0:00:34]}  a5 {[%clk 0:00:14]} 33. a4 {[%clk 0:00:32]}  Qf5 {[%clk 0:00:13]} 34. Kg2 {[%clk 0:00:32]}  Qd5+ {[%clk 0:00:14]} 35. Kh2 {[%clk 0:00:32]}  Qd4 {[%clk 0:00:10]} 36. Qxd4 {[%clk 0:00:29]}  Rxd4 {[%clk 0:00:09]} 37. Rxb7 {[%clk 0:00:30]}  Rxd3 {[%clk 0:00:10]} 38. Re1 {[%clk 0:00:11]}  Rd2 {[%clk 0:00:10]} 39. Kg1 {[%clk 0:00:10]}  Ra2 {[%clk 0:00:11]} 40. Ra7 {[%clk 0:00:09]}  Rxa4 {[%clk 0:00:09]} 41. Rc1 {[%clk 0:00:10]}  Rd6 {[%clk 0:00:07]} 42. Rc5 {[%clk 0:00:10]}  Ra1+ {[%clk 0:00:06]} 43. Kg2 {[%clk 0:00:11]}  Ra2 {[%clk 0:00:07]} 44. Rc4 {[%clk 0:00:08]}  Rdd2 {[%clk 0:00:07]} 45. Rf4 {[%clk 0:00:08]}  f5 {[%clk 0:00:05]} 46. Re7 {[%clk 0:00:07]}  Re2 {[%clk 0:00:04]} 47. Rd4 {[%clk 0:00:06]}  Rxf2+ {[%clk 0:00:04]} 48. Kg1 {[%clk 0:00:07]}  Rg2+ {[%clk 0:00:04]} 49. Kf1 {[%clk 0:00:08]}  Raf2+ {[%clk 0:00:05]} 50. Ke1 {[%clk 0:00:08]}  Ra2 {[%clk 0:00:05]} 51. Rd8# {[%clk 0:00:08]} 1-0


[Site "https://www.chess.com"]

[Event "Titled Tuesday Blitz May 30 Early 2023"]
[White "Fiorito, Francisco"]
[Black "Trifan, Andrei Ioan"]
[WhiteFideId "180165"]
[BlackFideId "12967068"]
[WhiteElo "2341"]
[BlackElo "2208"]
[Result "0-1"]
[Round "05"]
[TimeControl "180+2"]
[Date "2023.05.30"]
[WhiteClock "0:00:06"]
[BlackClock "0:00:35"]

1. d4 {[%clk 0:03:00]}  Nf6 {[%clk 0:02:59]} 2. Nc3 {[%clk 0:02:59]}  d5 {[%clk 0:02:58]} 3. Bf4 {[%clk 0:02:59]}  a6 {[%clk 0:02:53]} 4. e3 {[%clk 0:02:55]}  e6 {[%clk 0:02:52]} 5. Nf3 {[%clk 0:02:50]}  c5 {[%clk 0:02:52]} 6. dxc5 {[%clk 0:02:51]}  Bxc5 {[%clk 0:02:51]} 7. Bd3 {[%clk 0:02:51]}  Nc6 {[%clk 0:02:49]} 8. O-O {[%clk 0:02:50]}  O-O {[%clk 0:02:45]} 9. e4 {[%clk 0:02:50]}  d4 {[%clk 0:02:27]} 10. e5 {[%clk 0:02:29]}  dxc3 {[%clk 0:02:21]} 11. exf6 {[%clk 0:02:28]}  cxb2 {[%clk 0:02:04]} 12. fxg7 {[%clk 0:02:25]}  Re8 {[%clk 0:02:00]} 13. Rb1 {[%clk 0:01:44]}  Qf6 {[%clk 0:01:56]} 14. Qd2 {[%clk 0:01:29]}  e5 {[%clk 0:01:50]} 15. Bg5 {[%clk 0:01:26]}  Qxg7 {[%clk 0:01:44]} 16. Rfe1 {[%clk 0:01:18]}  Bg4 {[%clk 0:01:38]} 17. Nh4 {[%clk 0:01:15]}  f6 {[%clk 0:01:30]} 18. Bh6 {[%clk 0:01:13]}  Qf7 {[%clk 0:01:23]} 19. Rxb2 {[%clk 0:01:09]}  Rad8 {[%clk 0:01:24]} 20. h3 {[%clk 0:00:24]}  Be6 {[%clk 0:01:11]} 21. Qe2 {[%clk 0:00:20]}  Nd4 {[%clk 0:01:11]} 22. Qe4 {[%clk 0:00:18]}  Bd5 {[%clk 0:00:59]} 23. Qg4+ {[%clk 0:00:18]}  Kh8 {[%clk 0:01:00]} 24. Nf5 {[%clk 0:00:17]}  Nxf5 {[%clk 0:00:57]} 25. Qxf5 {[%clk 0:00:17]}  Rg8 {[%clk 0:00:57]} 26. g4 {[%clk 0:00:17]}  Be6 {[%clk 0:00:51]} 27. Qe4 {[%clk 0:00:16]}  Rd4 {[%clk 0:00:52]} 28. Qe2 {[%clk 0:00:16]}  Bxg4 {[%clk 0:00:51]} 29. hxg4 {[%clk 0:00:12]}  Rdxg4+ {[%clk 0:00:52]} 30. Qxg4 {[%clk 0:00:13]}  Rxg4+ {[%clk 0:00:52]} 31. Kf1 {[%clk 0:00:14]}  Qh5 {[%clk 0:00:47]} 32. Be3 {[%clk 0:00:13]}  Qh3+ {[%clk 0:00:40]} 33. Ke2 {[%clk 0:00:13]}  Bxe3 {[%clk 0:00:40]} 34. fxe3 {[%clk 0:00:14]}  Rg2+ {[%clk 0:00:41]} 35. Kd1 {[%clk 0:00:14]}  Qf3+ {[%clk 0:00:39]} 36. Kc1 {[%clk 0:00:15]}  Qf2 {[%clk 0:00:38]} 37. Rh1 {[%clk 0:00:11]}  Qxe3+ {[%clk 0:00:35]} 38. Kb1 {[%clk 0:00:08]}  Rg1+ {[%clk 0:00:35]} 39. Bf1 {[%clk 0:00:06]}  Qe1# {[%clk 0:00:35]} 0-1


[Site "https://www.chess.com"]

[Event "Titled Tuesday Blitz May 30 Early 2023"]
[White "Fan_Of_Chucky"]
[Black "Kleiman, Jake"]
[BlackFideId "2020041"]
[WhiteElo "2452"]
[BlackElo "2603"]
[Result "1-0"]
[Round "05"]
[TimeControl "180+2"]
[Date "2023.05.30"]
[WhiteClock "0:00:09"]
[BlackClock "0:00:03"]

1. d4 {[%clk 0:02:59]}  Nf6 {[%clk 0:02:59]} 2. c4 {[%clk 0:02:59]}  e6 {[%clk 0:03:00]} 3. Nf3 {[%clk 0:02:59]}  Bb4+ {[%clk 0:03:01]} 4. Bd2 {[%clk 0:02:59]}  Bxd2+ {[%clk 0:03:01]} 5. Nbxd2 {[%clk 0:03:00]}  O-O {[%clk 0:03:01]} 6. e3 {[%clk 0:02:59]}  d6 {[%clk 0:03:02]} 7. Bd3 {[%clk 0:02:59]}  Qe7 {[%clk 0:03:02]} 8. Qc2 {[%clk 0:02:59]}  e5 {[%clk 0:03:02]} 9. O-O {[%clk 0:02:58]}  Re8 {[%clk 0:03:03]} 10. Ne4 {[%clk 0:02:48]}  Nbd7 {[%clk 0:03:02]} 11. c5 {[%clk 0:02:43]}  Nxe4 {[%clk 0:02:50]} 12. Bxe4 {[%clk 0:02:35]}  Nf6 {[%clk 0:02:47]} 13. cxd6 {[%clk 0:02:36]}  cxd6 {[%clk 0:02:46]} 14. dxe5 {[%clk 0:02:36]}  dxe5 {[%clk 0:02:46]} 15. Nd2 {[%clk 0:02:18]}  Be6 {[%clk 0:02:39]} 16. Qa4 {[%clk 0:02:06]}  Red8 {[%clk 0:02:26]} 17. Rfd1 {[%clk 0:01:59]}  Nxe4 {[%clk 0:02:07]} 18. Nxe4 {[%clk 0:02:00]}  Bd7 {[%clk 0:01:48]} 19. Qa5 {[%clk 0:01:42]}  Bc6 {[%clk 0:01:32]} 20. Qc5 {[%clk 0:01:33]}  Qxc5 {[%clk 0:01:18]} 21. Nxc5 {[%clk 0:01:34]}  Kf8 {[%clk 0:01:19]} 22. f3 {[%clk 0:01:23]}  Ke7 {[%clk 0:01:14]} 23. Kf2 {[%clk 0:01:21]}  f6 {[%clk 0:01:13]} 24. Ke1 {[%clk 0:01:16]}  Rac8 {[%clk 0:01:12]} 25. Rxd8 {[%clk 0:01:11]}  Rxd8 {[%clk 0:01:11]} 26. Rd1 {[%clk 0:01:12]}  Rc8 {[%clk 0:01:11]} 27. Rc1 {[%clk 0:01:08]}  g5 {[%clk 0:01:06]} 28. b3 {[%clk 0:01:03]}  h5 {[%clk 0:01:05]} 29. e4 {[%clk 0:00:52]}  g4 {[%clk 0:00:48]} 30. Nd3 {[%clk 0:00:48]}  Rg8 {[%clk 0:00:44]} 31. Kf2 {[%clk 0:00:42]}  h4 {[%clk 0:00:42]} 32. Nb4 {[%clk 0:00:41]}  Kd6 {[%clk 0:00:31]} 33. Nxc6 {[%clk 0:00:35]}  bxc6 {[%clk 0:00:32]} 34. g3 {[%clk 0:00:34]}  hxg3+ {[%clk 0:00:29]} 35. hxg3 {[%clk 0:00:34]}  gxf3 {[%clk 0:00:28]} 36. Kxf3 {[%clk 0:00:35]}  Rh8 {[%clk 0:00:29]} 37. Rc2 {[%clk 0:00:31]}  Rh1 {[%clk 0:00:29]} 38. Kg4 {[%clk 0:00:13]}  Rf1 {[%clk 0:00:28]} 39. Rc3 {[%clk 0:00:10]}  a5 {[%clk 0:00:27]} 40. Rf3 {[%clk 0:00:09]}  Rxf3 {[%clk 0:00:11]} 41. Kxf3 {[%clk 0:00:10]}  Ke6 {[%clk 0:00:08]} 42. Ke3 {[%clk 0:00:07]}  Kd6 {[%clk 0:00:07]} 43. Kd3 {[%clk 0:00:05]}  Kc5 {[%clk 0:00:07]} 44. Kc3 {[%clk 0:00:04]}  Kb5 {[%clk 0:00:07]} 45. a3 {[%clk 0:00:03]}  Kc5 {[%clk 0:00:07]} 46. a4 {[%clk 0:00:02]}  Kb6 {[%clk 0:00:04]} 47. Kc4 {[%clk 0:00:02]}  Kb7 {[%clk 0:00:04]} 48. Kc5 {[%clk 0:00:02]}  Kc7 {[%clk 0:00:04]} 49. g4 {[%clk 0:00:03]}  Kb7 {[%clk 0:00:02]} 50. Kd6 {[%clk 0:00:03]}  Kb6 {[%clk 0:00:03]} 51. Ke6 {[%clk 0:00:04]}  Kc5 {[%clk 0:00:03]} 52. Kxf6 {[%clk 0:00:04]}  Kd4 {[%clk 0:00:02]} 53. Kf5 {[%clk 0:00:04]}  c5 {[%clk 0:00:02]} 54. g5 {[%clk 0:00:05]}  Kc3 {[%clk 0:00:02]} 55. g6 {[%clk 0:00:05]}  Kxb3 {[%clk 0:00:03]} 56. g7 {[%clk 0:00:06]}  c4 {[%clk 0:00:04]} 57. g8=Q {[%clk 0:00:06]}  Kb4 {[%clk 0:00:04]} 58. Qd5 {[%clk 0:00:06]}  c3 {[%clk 0:00:05]} 59. Qxe5 {[%clk 0:00:07]}  c2 {[%clk 0:00:05]} 60. Qb2+ {[%clk 0:00:08]}  Kxa4 {[%clk 0:00:05]} 61. Qxc2+ {[%clk 0:00:09]}  Ka3 {[%clk 0:00:03]} 62. Qc3+ {[%clk 0:00:09]} 1-0


[Site "https://www.chess.com"]

[Event "Titled Tuesday Blitz May 30 Early 2023"]
[White "Mamedov, Edgar"]
[Black "Sprenar, Petr"]
[WhiteFideId "13739980"]
[BlackFideId "397164"]
[WhiteElo "2317"]
[BlackElo "2182"]
[Result "1-0"]
[Round "05"]
[TimeControl "180+2"]
[Date "2023.05.30"]
[WhiteClock "0:00:10"]
[BlackClock "0:00:00"]

1. d4 {[%clk 0:03:00]}  d5 {[%clk 0:03:00]} 2. c4 {[%clk 0:02:59]}  e6 {[%clk 0:03:00]} 3. Nf3 {[%clk 0:02:59]}  Nf6 {[%clk 0:03:00]} 4. Nc3 {[%clk 0:02:59]}  Bb4 {[%clk 0:03:01]} 5. Bg5 {[%clk 0:02:57]}  h6 {[%clk 0:03:00]} 6. Bxf6 {[%clk 0:02:57]}  Qxf6 {[%clk 0:03:00]} 7. e3 {[%clk 0:02:57]}  O-O {[%clk 0:03:00]} 8. Rc1 {[%clk 0:02:55]}  c6 {[%clk 0:02:57]} 9. Bd3 {[%clk 0:02:51]}  Nd7 {[%clk 0:02:57]} 10. O-O {[%clk 0:02:51]}  dxc4 {[%clk 0:02:38]} 11. Bxc4 {[%clk 0:02:50]}  Bxc3 {[%clk 0:02:39]} 12. Rxc3 {[%clk 0:02:49]}  e5 {[%clk 0:02:39]} 13. dxe5 {[%clk 0:02:48]}  Nxe5 {[%clk 0:02:39]} 14. Nxe5 {[%clk 0:02:47]}  Qxe5 {[%clk 0:02:40]} 15. Qd2 {[%clk 0:02:43]}  Bf5 {[%clk 0:02:31]} 16. Rd1 {[%clk 0:02:39]}  Qe7 {[%clk 0:02:27]} 17. Rcc1 {[%clk 0:02:29]}  Rfd8 {[%clk 0:02:26]} 18. Qa5 {[%clk 0:02:26]}  Bg4 {[%clk 0:02:04]} 19. Rxd8+ {[%clk 0:02:22]}  Rxd8 {[%clk 0:01:41]} 20. Qxa7 {[%clk 0:02:18]}  Qb4 {[%clk 0:01:41]} 21. Bb3 {[%clk 0:01:49]}  Rd1+ {[%clk 0:00:38]} 22. Rxd1 {[%clk 0:01:40]}  Bxd1 {[%clk 0:00:38]} 23. h3 {[%clk 0:00:26]}  Bxb3 {[%clk 0:00:27]} 24. axb3 {[%clk 0:00:24]}  Qxb3 {[%clk 0:00:27]} 25. Qb8+ {[%clk 0:00:23]}  Kh7 {[%clk 0:00:28]} 26. Qe5 {[%clk 0:00:22]}  Qd1+ {[%clk 0:00:25]} 27. Kh2 {[%clk 0:00:21]}  Qd7 {[%clk 0:00:25]} 28. Qe4+ {[%clk 0:00:21]}  f5 {[%clk 0:00:24]} 29. Qe5 {[%clk 0:00:20]}  b6 {[%clk 0:00:19]} 30. b4 {[%clk 0:00:19]}  Kg6 {[%clk 0:00:13]} 31. h4 {[%clk 0:00:18]}  Kf7 {[%clk 0:00:12]} 32. h5 {[%clk 0:00:18]}  b5 {[%clk 0:00:05]} 33. Kg3 {[%clk 0:00:17]}  Qe6 {[%clk 0:00:05]} 34. Kf4 {[%clk 0:00:14]}  Qc4+ {[%clk 0:00:03]} 35. Kxf5 {[%clk 0:00:14]}  Qxb4 {[%clk 0:00:03]} 36. Qe6+ {[%clk 0:00:14]}  Kf8 {[%clk 0:00:04]} 37. Kg6 {[%clk 0:00:10]}  Qb1+ {[%clk 0:00:00]} 38. e4 {[%clk 0:00:10]} 1-0


[Site "https://www.chess.com"]

[Event "Titled Tuesday Blitz May 30 Early 2023"]
[White "Srdanovic, Jovana"]
[Black "Streltsov, Alexey"]
[WhiteFideId "954810"]
[BlackFideId "24104434"]
[WhiteElo "2169"]
[BlackElo "2585"]
[Result "0-1"]
[Round "05"]
[TimeControl "180+2"]
[Date "2023.05.30"]
[WhiteClock "0:00:07"]
[BlackClock "0:00:32"]

1. d4 {[%clk 0:02:56]}  d5 {[%clk 0:02:59]} 2. c4 {[%clk 0:02:56]}  e6 {[%clk 0:03:00]} 3. Nc3 {[%clk 0:02:55]}  c6 {[%clk 0:03:01]} 4. cxd5 {[%clk 0:02:54]}  exd5 {[%clk 0:03:00]} 5. Bf4 {[%clk 0:02:53]}  Bd6 {[%clk 0:03:00]} 6. Bxd6 {[%clk 0:02:53]}  Qxd6 {[%clk 0:03:01]} 7. e3 {[%clk 0:02:53]}  Ne7 {[%clk 0:03:01]} 8. Bd3 {[%clk 0:02:53]}  Bf5 {[%clk 0:03:01]} 9. Bxf5 {[%clk 0:02:52]}  Nxf5 {[%clk 0:03:02]} 10. Qd3 {[%clk 0:02:52]}  Qg6 {[%clk 0:02:59]} 11. Nge2 {[%clk 0:02:34]}  Qxg2 {[%clk 0:02:27]} 12. Rg1 {[%clk 0:02:06]}  Qf3 {[%clk 0:02:21]} 13. Nf4 {[%clk 0:01:46]}  g6 {[%clk 0:02:17]} 14. Ncxd5 {[%clk 0:01:23]}  cxd5 {[%clk 0:02:04]} 15. Qb5+ {[%clk 0:01:23]}  Nd7 {[%clk 0:02:00]} 16. Nxd5 {[%clk 0:01:08]}  O-O {[%clk 0:01:26]} 17. Qxb7 {[%clk 0:01:08]}  Nxd4 {[%clk 0:01:13]} 18. exd4 {[%clk 0:00:33]}  Rae8+ {[%clk 0:01:09]} 19. Kf1 {[%clk 0:00:32]}  Qe2+ {[%clk 0:00:54]} 20. Kg2 {[%clk 0:00:32]}  Qe4+ {[%clk 0:00:55]} 21. Kh3 {[%clk 0:00:16]}  Rd8 {[%clk 0:00:40]} 22. Qxd7 {[%clk 0:00:15]}  Qf3+ {[%clk 0:00:40]} 23. Rg3 {[%clk 0:00:13]}  Qh5+ {[%clk 0:00:16]} 24. Kg2 {[%clk 0:00:13]}  Qxd5+ {[%clk 0:00:17]} 25. Qxd5 {[%clk 0:00:12]}  Rxd5 {[%clk 0:00:18]} 26. Rd1 {[%clk 0:00:12]}  Re8 {[%clk 0:00:19]} 27. Re3 {[%clk 0:00:12]}  Rc8 {[%clk 0:00:19]} 28. Red3 {[%clk 0:00:12]}  Rc2 {[%clk 0:00:19]} 29. R3d2 {[%clk 0:00:12]}  Rc4 {[%clk 0:00:19]} 30. b3 {[%clk 0:00:12]}  Rc3 {[%clk 0:00:20]} 31. Rd3 {[%clk 0:00:11]}  Rc2 {[%clk 0:00:20]} 32. R1d2 {[%clk 0:00:12]}  Rc1 {[%clk 0:00:20]} 33. Kf3 {[%clk 0:00:12]}  f5 {[%clk 0:00:20]} 34. Re3 {[%clk 0:00:12]}  Kf7 {[%clk 0:00:21]} 35. Rde2 {[%clk 0:00:11]}  Kf6 {[%clk 0:00:20]} 36. Re6+ {[%clk 0:00:11]}  Kg5 {[%clk 0:00:21]} 37. Re7 {[%clk 0:00:10]}  h5 {[%clk 0:00:20]} 38. Re1 {[%clk 0:00:07]}  Rc3+ {[%clk 0:00:20]} 39. R7e3 {[%clk 0:00:07]}  Rc2 {[%clk 0:00:19]} 40. Rg1+ {[%clk 0:00:06]}  Kf6 {[%clk 0:00:19]} 41. Rd3 {[%clk 0:00:06]}  Rxa2 {[%clk 0:00:19]} 42. Rc3 {[%clk 0:00:05]}  Ra6 {[%clk 0:00:20]} 43. Rc7 {[%clk 0:00:06]}  Rb6 {[%clk 0:00:18]} 44. Rc8 {[%clk 0:00:06]}  Rxb3+ {[%clk 0:00:19]} 45. Ke2 {[%clk 0:00:05]}  Rb6 {[%clk 0:00:20]} 46. Rf8+ {[%clk 0:00:06]}  Ke7 {[%clk 0:00:20]} 47. Rg8 {[%clk 0:00:06]}  Rdd6 {[%clk 0:00:20]} 48. Rg7+ {[%clk 0:00:06]}  Kd8 {[%clk 0:00:20]} 49. Rxa7 {[%clk 0:00:06]}  Rxd4 {[%clk 0:00:20]} 50. Rc1 {[%clk 0:00:06]}  Rdd6 {[%clk 0:00:21]} 51. Rca1 {[%clk 0:00:06]}  Rd7 {[%clk 0:00:20]} 52. Ra8+ {[%clk 0:00:06]}  Ke7 {[%clk 0:00:20]} 53. Rg8 {[%clk 0:00:06]}  Re6+ {[%clk 0:00:21]} 54. Kf1 {[%clk 0:00:06]}  Kf6 {[%clk 0:00:22]} 55. Rf8+ {[%clk 0:00:06]}  Rf7 {[%clk 0:00:23]} 56. Rxf7+ {[%clk 0:00:07]}  Kxf7 {[%clk 0:00:23]} 57. Ra7+ {[%clk 0:00:08]}  Kf6 {[%clk 0:00:24]} 58. Ra3 {[%clk 0:00:08]}  Kg5 {[%clk 0:00:25]} 59. Kg2 {[%clk 0:00:09]}  h4 {[%clk 0:00:25]} 60. Rf3 {[%clk 0:00:09]}  Re4 {[%clk 0:00:25]} 61. Ra3 {[%clk 0:00:09]}  Rg4+ {[%clk 0:00:25]} 62. Kh3 {[%clk 0:00:09]}  Rf4 {[%clk 0:00:26]} 63. Ra2 {[%clk 0:00:08]}  Rf3+ {[%clk 0:00:26]} 64. Kg2 {[%clk 0:00:08]}  Rf4 {[%clk 0:00:24]} 65. Ra6 {[%clk 0:00:09]}  Rb4 {[%clk 0:00:24]} 66. Rc6 {[%clk 0:00:09]}  Rb3 {[%clk 0:00:25]} 67. Rc8 {[%clk 0:00:07]}  h3+ {[%clk 0:00:25]} 68. Kf1 {[%clk 0:00:07]}  Kg4 {[%clk 0:00:26]} 69. Rc4+ {[%clk 0:00:06]}  f4 {[%clk 0:00:26]} 70. Rc1 {[%clk 0:00:07]}  g5 {[%clk 0:00:27]} 71. Re1 {[%clk 0:00:07]}  Kf3 {[%clk 0:00:27]} 72. Rc1 {[%clk 0:00:08]}  g4 {[%clk 0:00:26]} 73. Rc3+ {[%clk 0:00:07]}  Rxc3 {[%clk 0:00:26]} 74. Ke1 {[%clk 0:00:07]}  Rc1+ {[%clk 0:00:27]} 75. Kd2 {[%clk 0:00:07]}  Kxf2 {[%clk 0:00:28]} 76. Kxc1 {[%clk 0:00:07]}  Kg2 {[%clk 0:00:29]} 77. Kd2 {[%clk 0:00:08]}  Kxh2 {[%clk 0:00:30]} 78. Ke2 {[%clk 0:00:08]}  Kg2 {[%clk 0:00:31]} 79. Ke1 {[%clk 0:00:08]}  h2 {[%clk 0:00:31]} 80. Ke2 {[%clk 0:00:07]}  h1=Q {[%clk 0:00:32]} 0-1


[Site "https://www.chess.com"]